bitfinex/quotes_ETHUSD_20240902
["timestamp","ask_amount","ask_price","bid_price","bid_amount"]
[1725259160151,8.40640405,2458.5,2458.1,2.84772]
[1725259160352,0.08027841,2458.2,2458.1,2.84772]
[1725259160549,8.40640405,2458.5,2458.1,2.84772]
[1725259160748,0.08027841,2458.2,2458.1,2.84772]
[1725259160947,8.40640405,2458.5,2458.1,2.84772]
[1725259161149,8.40640405,2458.5,2458.2,2.84759]
[1725259162663,8.40640405,2458.5,2458.3,2.84744]
[1725259162836,10.9677,2458.9,2458.3,2.84744]
[1725259163036,0.10169654,2458.8,2458.3,2.84744]
[1725259163437,0.10169654,2458.8,2458.4,2.84736]
[1725259167036,0.10169654,2458.8,2458.4,5.69467]
[1725259167272,8.405569,2458.9,2458.6,2.84707]
[1725259167273,8.1209,2458.9,2458.6,2.84707]
[1725259167474,8.0877,2459.1,2458.6,2.84708]
[1725259167674,0.10167579,2459.0,2458.8,2.84684]
[1725259168382,8.0877,2459.2,2458.8,2.84684]
[1725259168685,0.1016756,2459.1,2458.8,2.84684]
[1725259169535,0.1016756,2459.1,2458.6,2.84708]
[1725259169536,0.1016756,2459.1,2458.6,5.69413]
[1725259169779,0.08092232,2459.0,2458.6,5.69413]
[1725259170549,0.08092232,2459.0,2458.6,5.69412]
[1725259171381,0.08092232,2459.0,2458.6,5.69413]
[1725259172175,0.08092232,2459.0,2458.6,2.84705]
[1725259172543,0.08092232,2459.0,2458.6,5.69413]
[1725259172895,0.08092232,2459.0,2458.6,2.84705]
[1725259173095,0.08092232,2459.0,2458.2,2.13619626]
[1725259173267,7.6241,2458.9,2458.3,2.84743]
[1725259173470,0.10169029,2458.8,2458.3,2.84743]
[1725259173803,0.18038197,2458.8,2458.3,2.84743]
[1725259174970,3.02731197,2458.8,2458.3,2.84743]
[1725259177005,8.0964,2458.7,2458.1,12.98528]
[1725259177188,0.10169275,2458.6,2458.2,2.84757]
[1725259177387,0.18030438,2458.6,2458.2,2.84757]
[1725259177810,0.18030438,2458.6,2458.1,10.13762]
[1725259178013,3.02745438,2458.6,2458.1,10.13762]
[1725259178217,8.19809447,2458.5,2458.1,10.13762]
[1725259178518,8.27660327,2458.5,2458.1,10.13762]
[1725259182520,2.84738,2458.4,2457.9,13.78628]
[1725259182833,2.84775,2458.1,2457.7,2.13758275]
[1725259182972,0.10171407,2458.0,2457.6,10.13829]
[1725259183299,0.07829658,2458.0,2457.6,10.13829]
[1725259184986,0.07829658,2458.0,2457.7,2.84818]
[1725259187597,0.07829658,2458.0,2457.6,7.29]
[1725259187783,0.1017141,2458.1,2457.6,7.29]
[1725259188400,0.1017141,2458.1,2457.5,11.13392]
[1725259188639,2.9495341,2458.1,2457.5,11.13392]
[1725259188798,10.74046,2457.9,2457.4,7.29]
[1725259189002,0.10172639,2457.8,2457.3,12.60681895]
[1725259189235,0.17970689,2457.8,2457.4,3.0]
[1725259189623,0.17970689,2457.8,2457.3,2.84863]
[1725259190435,0.10172639,2457.8,2457.3,2.84863]
[1725259191203,0.10172639,2457.8,2457.3,5.6972]
[1725259193135,0.10172639,2457.8,2457.4,2.84853]
[1725259194945,0.10172639,2457.8,2457.4,10.43773]
[1725259195105,0.10172639,2457.8,2457.5,2.84842]
[1725259195511,0.0777698,2457.7,2457.5,2.84842]
[1725259195919,0.10172639,2457.8,2457.5,2.84842]
[1725259196101,0.07774301,2457.6,2457.5,2.84842]
[1725259196296,7.8925,2457.9,2457.5,2.84842]
[1725259196541,0.07773109,2457.6,2457.5,2.84842]
[1725259196848,0.10172639,2457.8,2457.5,2.84842]
[1725259197016,0.07774248,2457.6,2457.5,2.84834]
[1725259197342,0.10172643,2458.0,2457.5,5.69668]
[1725259197550,0.07774248,2457.6,2457.5,5.69668]
[1725259197727,0.10172643,2458.0,2457.7,2.84817]
[1725259198105,0.07778482,2457.9,2457.7,2.84817]
[1725259201049,0.07778482,2457.9,2457.8,2.84807]
[1725259201231,7.9959,2458.3,2457.8,2.84807]
[1725259201436,0.07784569,2457.9,2457.8,2.84807]
[1725259201606,0.10171361,2458.2,2457.8,2.84807]
[1725259201802,0.07784569,2457.9,2457.8,2.84807]
[1725259202007,0.10171361,2458.2,2457.8,2.84807]
[1725259202236,0.07784569,2457.9,2457.8,2.84807]
[1725259202454,0.10171361,2458.2,2457.8,2.84807]
[1725259202666,0.011,2466.8,2457.8,2.84807]
[1725259202667,7.8616,2458.6,2457.9,2.84795]
[1725259202822,0.10170278,2458.5,2458.1,2.84771]
[1725259203917,0.10170278,2458.5,2458.2,2.8476]
[1725259204132,7.8985,2459.0,2458.3,8.3352]
[1725259204422,8.00018306,2459.2,2458.8,2.84684]
[1725259204858,8.00018306,2459.2,2458.9,2.84677]
[1725259205260,0.10168306,2459.2,2458.8,2.84684]
[1725259205570,7.68117543,2459.4,2458.8,2.84684]
[1725259205718,1.068087,2459.3,2458.8,2.84684]
[1725259205922,0.10167544,2459.2,2458.8,2.84684]
[1725259206372,1.16976245,2459.3,2459.0,2.84665]
[1725259206730,0.10166526,2459.2,2459.0,2.84665]
[1725259206880,1.16975226,2459.3,2459.0,2.84665]
[1725259207780,0.10166528,2459.2,2459.0,2.84665]
[1725259208275,0.10166529,2459.3,2459.0,2.84665]
[1725259210053,0.10166529,2459.3,2458.8,5.69366]
[1725259210380,0.10166529,2459.3,2458.9,2.8468]
[1725259210596,0.10166529,2459.3,2458.8,2.84682]
[1725259210888,7.5482,2459.2,2458.6,10.13705]
[1725259211048,0.10167829,2459.1,2458.6,10.13705]
[1725259211598,2.94827829,2459.1,2458.6,10.13705]
[1725259213967,0.10167829,2459.1,2458.6,10.13705]
[1725259214150,0.10167829,2459.1,2458.6,12.98412]
[1725259214660,0.07850765,2459.0,2458.6,12.98412]
[1725259215055,0.07850765,2459.0,2458.6,5.69412]
[1725259215996,0.07850765,2459.0,2458.7,2.84702]
[1725259216793,0.07850765,2459.0,2458.6,2.84705]
[1725259216980,10.49627,2458.9,2458.3,2.84745]
[1725259217151,2.94861268,2458.8,2458.2,2.84757]
[1725259217356,7.6494,2458.7,2458.2,5.69511]
[1725259217679,0.10169521,2458.6,2458.2,2.84754]
[1725259217882,0.1805826,2458.6,2458.2,2.84754]
[1725259222898,0.1805826,2458.6,2458.2,5.69508]
[1725259223101,0.1805826,2458.6,2458.2,2.84754]
[1725259232102,0.22202095,2458.6,2458.2,2.84754]
[1725259236187,10.62387,2458.5,2458.0,2.84778]
[1725259236387,0.10170512,2458.4,2457.8,5.696]
[1725259236701,7.7766,2458.3,2457.8,2.84799]
[1725259236901,0.10170911,2458.2,2457.7,7.29]
[1725259237216,0.22208051,2458.2,2457.7,7.29]
[1725259237586,0.22208051,2458.2,2457.6,2.84829]
[1725259237770,0.1203714,2458.2,2458.0,7.7924]
[1725259237975,0.1203714,2458.2,2458.1,14.82314213]
[1725259238191,0.10169693,2459.0,2458.7,2.84702]
[1725259238411,0.10169693,2459.0,2458.7,2.84696]
[1725259238612,0.11190875,2458.9,2458.7,2.84696]
[1725259238978,0.11190875,2458.9,2458.7,5.69392]
[1725259239284,0.11190875,2458.9,2458.8,2.84691]
[1725259239620,0.10167974,2459.2,2458.8,2.84691]
[1725259239820,0.11194073,2458.9,2458.8,2.84691]
[1725259240122,0.10167974,2459.2,2458.9,2.84677]
[1725259243310,0.10167974,2459.2,2458.9,5.6935]
[1725259244704,0.11200149,2459.1,2458.9,2.84673]
[1725259246345,0.11200149,2459.1,2458.9,5.69346]
[1725259247524,0.11200149,2459.1,2459.0,2.84668]
[1725259262099,0.11200149,2459.1,2459.0,13.73906]
[1725259262248,0.10166116,2459.5,2459.3,2.84626]
[1725259262450,0.11333278,2459.4,2459.3,5.69252]
[1725259262754,0.11333278,2459.4,2459.3,2.84626]
[1725259263817,0.1016574,2459.7,2459.3,2.84626]
[1725259263982,0.11341661,2459.4,2459.3,2.84626]
[1725259264530,1.5706636,2459.7,2459.3,2.84626]
[1725259264803,0.11341661,2459.4,2459.3,2.84626]
[1725259265104,1.5706636,2459.7,2459.3,2.84626]
[1725259265308,0.11341661,2459.4,2459.3,2.84626]
[1725259265518,1.5706636,2459.7,2459.3,2.84626]
[1725259265670,0.11341661,2459.4,2459.3,2.84626]
[1725259265869,0.10165725,2459.5,2459.3,2.84626]
[1725259266113,0.11341661,2459.4,2459.3,2.84626]
[1725259270469,0.11341661,2459.4,2459.1,5.69296]
[1725259270677,0.11341661,2459.4,2459.1,2.84647]
[1725259271581,0.11341661,2459.4,2459.2,2.84642]
[1725259272794,0.11341661,2459.4,2459.1,2.84647]
[1725259272998,0.11341661,2459.4,2458.7,10.137]
[1725259272999,11.85381459,2459.2,2458.7,7.29]
[1725259273229,1.29722616,2459.1,2458.6,2.84714]
[1725259273431,0.21524291,2459.1,2458.6,2.84714]
[1725259275692,7.7592,2459.0,2458.6,2.84714]
[1725259275896,0.10167791,2458.9,2458.6,2.84714]
[1725259276188,0.21502028,2458.9,2458.6,2.84714]
[1725259278508,3.85927231,2458.9,2458.3,10.13738]
[1725259278716,8.0181,2458.8,2458.4,2.84736]
[1725259278921,0.10168752,2458.7,2458.4,2.84736]
[1725259279222,0.21492644,2458.7,2458.4,2.84736]
[1725259279432,0.10168752,2458.7,2458.3,2.84738]
[1725259279589,0.11321387,2458.6,2458.3,2.84738]
[1725259280033,0.10168752,2458.7,2458.3,2.84738]
[1725259280198,0.10168752,2458.7,2458.4,2.84736]
[1725259280404,0.11321387,2458.6,2458.4,2.84736]
[1725259281519,0.11321387,2458.6,2458.3,2.84738]
[1725259281721,0.10168752,2458.7,2458.3,2.84738]
[1725259281901,0.11299064,2458.5,2458.3,2.84738]
[1725259282118,0.10168752,2458.7,2458.3,2.84738]
[1725259282306,0.11296558,2458.4,2458.3,2.84738]
[1725259282508,0.10168752,2458.7,2458.3,2.84738]
[1725259282694,0.11305085,2458.4,2458.3,2.84738]
[1725259282934,0.10168752,2458.7,2458.3,2.84738]
[1725259283095,0.10168752,2458.7,2457.7,2.13532179]
[1725259283096,7.982,2458.3,2457.7,2.13532179]
[1725259283300,7.982,2458.3,2457.5,2.84834]
[1725259283301,7.982,2458.1,2457.5,2.84834]
[1725259283596,0.10171945,2458.0,2457.5,2.84834]
[1725259283949,0.21409498,2458.0,2457.5,5.69668]
[1725259284096,0.21409498,2458.0,2457.6,2.8483]
[1725259286377,0.21409498,2458.0,2457.5,2.84833]
[1725259286727,0.21409498,2458.0,2457.5,5.69668]
[1725259287634,0.21409498,2458.0,2457.6,2.84829]
[1725259289175,0.21409498,2458.0,2457.3,10.43854]
[1725259289176,7.7193,2457.9,2457.3,10.43854]
[1725259289346,0.10172882,2457.8,2457.4,2.84847]
[1725259289589,0.111942,2457.7,2457.4,2.84847]
[1725259289954,0.10172882,2457.8,2457.4,2.84847]
[1725259290199,0.111942,2457.7,2457.4,2.84847]
[1725259290789,0.11174162,2457.6,2457.4,2.84847]
[1725259291137,0.10172882,2457.8,2457.4,2.84847]
[1725259291450,0.1117667,2457.7,2457.4,2.84847]
[1725259291645,0.10172882,2457.8,2457.4,2.84847]
[1725259291868,8.1813,2458.1,2457.7,2.84819]
[1725259292933,8.1813,2458.1,2457.9,2.84794]
[1725259293347,0.10171171,2458.0,2457.7,2.84811]
[1725259294285,0.10171171,2458.0,2457.7,5.69622]
[1725259294597,0.10171171,2458.0,2457.7,2.84811]
[1725259296037,8.1813,2458.1,2457.8,2.84801]
[1725259296244,0.10171694,2458.0,2457.8,2.84801]
[1725259296438,0.10171694,2458.0,2457.7,2.84811]
[1725259296874,0.10171694,2458.0,2457.7,5.69623]
[1725259297656,0.10171694,2458.0,2457.7,2.84811]
[1725259298179,0.10171694,2458.0,2457.7,5.69623]
[1725259299543,0.10171694,2458.0,2457.7,2.84811]
[1725259299987,0.10171694,2458.0,2457.7,5.69623]
[1725259300288,0.10171694,2458.0,2457.7,2.84811]
[1725259301055,0.10171694,2458.0,2457.7,5.69623]
[1725259302390,7.6206,2457.9,2457.6,2.84829]
[1725259302596,0.10171835,2457.8,2457.5,2.84833]
[1725259302753,0.10171835,2457.8,2457.5,5.69668]
[1725259306064,7.6206,2457.9,2457.5,5.69668]
[1725259306265,7.6206,2457.9,2457.6,2.84826]
[1725259306641,0.11132352,2457.8,2457.6,2.84826]
[1725259307203,7.72232353,2457.9,2457.6,2.84826]
[1725259307722,0.11132352,2457.8,2457.6,2.84826]
[1725259309320,0.11132352,2457.8,2457.5,2.84833]
[1725259309683,0.21304708,2457.8,2457.5,2.84833]
[1725259311406,0.21304708,2457.8,2457.3,2.84858]
[1725259311407,8.1452,2457.7,2457.3,2.84858]
[1725259311619,0.10173054,2457.6,2457.3,2.84858]
[1725259311781,0.21181516,2457.6,2457.3,2.84858]
[1725259313881,0.21181516,2457.6,2457.2,7.29]
[1725259314077,0.10173054,2457.6,2457.2,7.29]
[1725259314282,6.76435971,2457.8,2457.2,7.29]
[1725259314283,7.6879,2457.5,2457.2,7.29]
[1725259314529,0.21159933,2457.4,2457.2,7.29]
[1725259316346,0.21159933,2457.4,2457.0,2.84899]
[1725259318303,0.10985931,2457.4,2457.1,2.84885]
[1725259318506,0.10985931,2457.4,2457.1,2.84881]
[1725259318938,0.10985931,2457.4,2457.1,5.69762]
[1725259319449,0.10985931,2457.4,2457.2,2.84875]
[1725259319654,0.10985931,2457.4,2457.1,2.84881]
[1725259320022,0.10985931,2457.4,2456.8,2.84921]
[1725259320023,7.92823943,2457.3,2456.8,2.84921]
[1725259320341,7.92823943,2457.3,2456.7,2.84928]
[1725259320342,7.93596608,2457.2,2456.7,2.84928]
[1725259320542,0.10175682,2457.1,2456.7,2.84928]
[1725259321547,0.10175682,2457.1,2456.6,2.84944]
[1725259322211,7.8488,2457.0,2456.6,2.84944]
[1725259322978,7.8488,2456.8,2456.3,2.84975]
[1725259323117,0.10177157,2456.7,2456.3,2.84975]
[1725259323652,0.70601126,2456.7,2456.3,2.84975]
[1725259324028,0.10177157,2456.7,2456.3,2.84975]
[1725259325239,0.10177157,2456.7,2456.3,5.69949]
[1725259325469,0.10177157,2456.7,2456.4,2.84968]
[1725259331644,0.10177157,2456.7,2456.3,2.84974]
[1725259331847,7.8488,2456.8,2456.6,2.84946]
[1725259332039,8.1994,2457.0,2456.7,2.84935]
[1725259332935,0.10176432,2456.9,2456.5,2.84949]
[1725259333282,0.93188075,2456.9,2456.5,2.84949]
[1725259333434,0.10176432,2456.9,2456.5,5.699]
[1725259336640,0.10176432,2456.9,2456.5,2.84949]
[1725259337450,0.10176432,2456.9,2456.4,2.84966]
[1725259337638,7.9417,2456.8,2456.4,2.84966]
[1725259337975,0.10177113,2456.7,2456.4,2.84966]
[1725259338851,0.10177113,2456.7,2456.3,2.84975]
[1725259339265,0.10177113,2456.7,2456.1,12.98996]
[1725259339470,7.9465,2456.5,2456.1,7.29]
[1725259339968,0.10178154,2456.4,2456.1,7.29]
[1725259340152,0.10178154,2456.4,2456.0,4902.19926108]
[1725259340351,0.10178154,2456.4,2456.0,4899.34910108]
[1725259340352,7.6258,2456.3,2456.0,4899.34910108]
[1725259341178,7.6258,2456.3,2456.1,2.85004]
[1725259342177,7.6258,2456.3,2456.1,2.84998]
[1725259342578,7.6258,2456.3,2456.2,2.84993]
[1725259342894,7.5554,2456.5,2456.2,2.84993]
[1725259343178,7.5554,2456.5,2456.3,2.84978]
[1725259343855,7.5554,2456.5,2456.3,2.84974]
[1725259344164,8.03688233,2456.7,2456.3,5.69947]
[1725259344355,8.03688233,2456.7,2456.4,2.84964]
[1725259345164,8.03688233,2456.7,2456.5,2.84955]
[1725259345355,8.03688233,2456.7,2456.5,5.69906]
[1725259345686,8.03688233,2456.7,2456.6,2.84946]
[1725259345866,8.58688233,2456.7,2456.6,2.84946]
[1725259346735,8.58688233,2456.7,2456.6,5.69892]
[1725259346940,7.741,2457.4,2456.6,2.84946]
[1725259347143,8.57475698,2457.4,2457.3,5.6973]
[1725259347392,7.741,2457.4,2457.3,8.54595]
[1725259347542,0.10173771,2457.6,2457.5,5.69684]
[1725259347745,7.8072,2457.7,2457.6,5.6966]
[1725259348492,8.72348732,2457.7,2457.6,5.6966]
[1725259349243,7.4285,2458.4,2457.4,2.84842]
[1725259349595,7.53022517,2458.4,2458.3,2.84749]
[1725259349758,7.53022517,2458.4,2458.3,5.69498]
[1725259350080,8.32971441,2458.4,2458.3,5.69498]
[1725259350643,0.79948924,2458.4,2458.3,8.54247]
[1725259350984,8.14169718,2458.6,2458.5,5.69452]
[1725259351349,8.04,2458.9,2458.8,2.8469]
[1725259351654,8.34122954,2458.9,2458.8,5.69381]
[1725259352299,0.30122954,2458.9,2458.8,5.69381]
[1725259352491,7.77848169,2459.2,2459.1,2.84656]
[1725259352648,7.77848169,2459.2,2459.1,5.69312]
[1725259358502,7.7359,2459.6,2459.4,2.84612]
[1725259358731,0.10166004,2459.5,2459.4,2.84612]
[1725259358914,0.19864458,2459.5,2459.4,5.69234]
[1725259360015,0.74864458,2459.5,2459.4,5.69234]
[1725259360218,1.89832858,2459.5,2459.4,2.84612]
[1725259363120,9.51092858,2459.5,2459.4,2.84612]
[1725259363333,2.8475,2458.3,2457.1,10.68147]
[1725259363486,3.01229545,2458.0,2457.4,2.84846]
[1725259363691,3.06447129,2458.2,2457.4,2.84846]
[1725259363692,3.01229545,2457.7,2457.4,2.84846]
[1725259363936,3.01229545,2457.7,2457.4,5.69687]
[1725259363937,0.10173397,2457.6,2457.4,5.69687]
[1725259364136,0.19851883,2457.6,2457.4,2.84843]
[1725259364457,0.19851883,2457.6,2457.4,5.69688]
[1725259364588,0.19851883,2457.6,2457.4,2.84843]
[1725259365094,0.09678486,2457.6,2457.4,2.84843]
[1725259365537,0.10173385,2457.8,2457.4,2.84843]
[1725259365831,1.17439678,2457.8,2457.2,2.84869]
[1725259366003,0.19789268,2457.7,2457.2,2.84869]
[1725259366207,0.19789268,2457.7,2457.2,5.69738]
[1725259366703,0.19789268,2457.7,2457.3,2.84864]
[1725259371727,4.21919724,2457.7,2457.0,5.69785]
[1725259371936,7.23149269,2457.7,2457.0,2.84889]
[1725259372243,0.83041556,2457.6,2457.1,2.8488]
[1725259372390,0.19757926,2457.5,2457.2,2.84876]
[1725259383378,0.19757926,2457.5,2457.2,5.69746]
[1725259383588,0.19757926,2457.5,2457.2,2.8487]
[1725259387495,0.19757926,2457.5,2457.0,2.84893]
[1725259387496,10.44257,2457.4,2456.8,2.84912]
[1725259387679,1.16576746,2457.3,2456.9,2.84908]
[1725259387879,0.19752295,2457.3,2456.8,2.84912]
[1725259388079,2.84884,2457.2,2456.6,10.1394]
[1725259388280,2.84884,2457.2,2456.6,7.29]
[1725259388281,7.594,2457.0,2456.6,7.29]
[1725259388595,0.10176275,2456.9,2456.6,7.29]
[1725259388797,0.10176275,2456.9,2456.5,2.84956]
[1725259390182,3.01229545,2456.8,2456.2,10.13984]
[1725259390494,0.10177188,2456.7,2456.2,10.13984]
[1725259391067,0.10177188,2456.7,2456.4,2.84969]
[1725259392894,10.44301,2457.0,2456.4,2.8496]
[1725259392895,0.10177179,2456.9,2456.4,2.8496]
[1725259393769,0.10177179,2456.9,2456.6,2.84939]
[1725259393971,10.63293,2457.2,2456.6,2.84939]
[1725259394151,2.01628912,2457.1,2456.6,2.84939]
[1725259394351,4.86519912,2457.1,2456.6,2.84939]
[1725259394655,2.01628912,2457.1,2456.6,2.84939]
[1725259395202,2.01628912,2457.1,2456.6,5.69878]
[1725259395367,2.01628912,2457.1,2456.6,2.84939]
[1725259395757,2.01628912,2457.1,2456.6,5.69878]
[1725259395985,2.01628912,2457.1,2456.6,2.84939]
[1725259397501,1.54980691,2457.0,2456.6,2.84939]
[1725259397704,0.10176656,2456.9,2456.6,2.84939]
[1725259397906,0.10176656,2456.9,2456.4,5.69922]
[1725259398201,0.10176656,2456.9,2456.4,2.84959]
[1725259398410,8.1892,2456.8,2456.3,2.84978]
[1725259398699,0.10177327,2456.7,2456.3,2.84978]
[1725259399457,0.10177327,2456.7,2456.2,10.1399]
[1725259399814,5.96341872,2456.7,2456.2,10.1399]
[1725259402632,5.96341872,2456.7,2456.2,2.8499]
[1725259402772,7.75787771,2456.7,2456.1,2.85]
[1725259405393,5.96341872,2456.7,2456.1,2.85]
[1725259406881,2.95112327,2456.7,2456.1,2.85]
[1725259407180,2.95112327,2456.7,2456.0,4906.63910108]
[1725259407181,7.7506,2456.5,2456.0,4906.63910108]
[1725259407375,2.95149583,2456.4,2456.0,4906.63910108]
[1725259408427,2.95149583,2456.4,2456.0,4899.34910108]
[1725259409396,0.10178583,2456.4,2456.0,4902.19925108]
[1725259409727,7.85238364,2456.5,2456.0,4902.19918108]
[1725259410633,7.7506,2456.5,2456.1,2.85]
[1725259410788,0.10178006,2456.6,2456.2,2.8499]
[1725259412792,0.10178006,2456.6,2456.2,5.6998]
[1725259412985,0.10178006,2456.6,2456.2,2.8499]
[1725259414510,0.10178006,2456.6,2456.2,2.84985]
[1725259415445,0.10178006,2456.6,2456.3,2.84971]
[1725259428846,0.10178006,2456.6,2456.2,2.84985]
[1725259430206,8.88681059,2456.4,2456.0,4902.19918108]
[1725259430422,0.10178726,2456.3,2456.0,4899.34910108]
[1725259431203,1.25711059,2456.2,2456.0,4899.34910108]
[1725259433647,1.2556808,2456.2,2456.0,4899.34910108]
[1725259434216,4.1056308,2456.2,2456.0,4899.34910108]
[1725259434443,8.1623,2456.1,2456.0,4899.34910108]
[1725259437829,11.01234,2456.1,2456.0,4899.34910108]
[1725259440613,8.1623,2456.1,2456.0,4899.34910108]
[1725259441420,1.70187307,2456.5,2456.0,4899.34910108]
[1725259441623,1.25711059,2456.6,2456.3,2.84973]
[1725259442229,1.25711059,2456.6,2456.2,2.84992]
[1725259442524,1.25711059,2456.6,2456.3,2.8498]
[1725259444783,1.25711059,2456.6,2456.2,2.84985]
[1725259445439,1.25711059,2456.4,2456.0,4905.04928108]
[1725259445892,1.25711059,2456.4,2456.1,2.84997]
[1725259446099,1.25711059,2456.4,2456.0,4902.19917108]
[1725259446585,1.25711059,2456.4,2456.0,4905.04926108]
[1725259447802,1.25711059,2456.6,2456.0,4902.19917108]
[1725259447952,0.10178254,2456.5,2456.0,4902.19917108]
[1725259449008,0.10178254,2456.5,2456.2,2.8499]
[1725259452551,0.10178254,2456.5,2456.2,5.69976]
[1725259452849,0.10178254,2456.5,2456.3,2.84978]
[1725259453029,1.35889121,2456.6,2456.2,5.69971]
[1725259453823,1.35889121,2456.6,2456.2,2.84985]
[1725259458959,1.25711059,2456.6,2456.3,2.84975]
[1725259462884,1.25711059,2456.6,2456.2,2.84985]
[1725259462885,8.0379,2456.4,2456.2,2.84985]
[1725259463030,8.0379,2456.4,2456.0,4902.19919108]
[1725259463031,9.29501059,2456.4,2456.0,4902.19919108]
[1725259463434,9.29501059,2456.4,2456.0,4905.04928108]
[1725259463733,9.29501059,2456.4,2456.1,2.84998]
[1725259465330,9.29501059,2456.4,2456.0,4905.04928108]
[1725259465537,9.29501059,2456.4,2456.0,4902.19919108]
[1725259467042,9.29501059,2456.4,2456.0,4905.04929108]
[1725259467248,9.29501059,2456.4,2456.0,4902.19919108]
[1725259467434,9.29501059,2456.4,2456.0,4905.04929108]
[1725259472159,9.29501059,2456.4,2456.0,4905.04928108]
[1725259474197,9.29501059,2456.4,2456.0,4902.19919108]
[1725259474393,9.2771446,2456.4,2456.0,4902.19919108]
[1725259474604,9.18559325,2456.4,2456.0,4905.04928108]
[1725259474925,9.03192845,2456.4,2456.0,4902.19919108]
[1725259475058,9.03192845,2456.4,2456.2,2.84993]
[1725259475686,9.01614021,2456.4,2456.2,2.84993]
[1725259476706,2.84936,2456.7,2456.2,2.84993]
[1725259476862,1.35888938,2456.6,2456.2,5.69979]
[1725259477062,1.35888938,2456.6,2456.2,2.84986]
[1725259477409,1.25711059,2456.6,2456.2,5.69972]
[1725259478714,9.17371059,2456.6,2456.2,5.69972]
[1725259479274,9.17371059,2456.6,2456.2,2.84986]
[1725259480368,0.10177672,2456.5,2456.3,2.84974]
[1725259480606,0.10177672,2456.5,2456.2,2.84986]
[1725259485572,9.17371059,2456.6,2456.2,2.84986]
[1725259492100,9.17371059,2456.6,2456.2,5.69972]
[1725259492396,9.17371059,2456.6,2456.2,5.6997]
[1725259492555,9.17371059,2456.6,2456.2,2.84984]
[1725259494303,9.17371059,2456.6,2456.3,2.84979]
[1725259495580,0.10177626,2456.5,2456.3,2.84979]
[1725259496270,9.17371059,2456.6,2456.3,2.84979]
[1725259496863,0.10177626,2456.5,2456.3,2.84979]
[1725259497064,9.17371059,2456.6,2456.3,2.84979]
[1725259498620,9.17371059,2456.6,2456.2,5.6997]
[1725259499167,9.17371059,2456.6,2456.2,2.84984]
[1725259499667,9.17371059,2456.6,2456.2,5.6997]
[1725259499900,9.17371059,2456.6,2456.3,2.8498]
[1725259500665,9.17371059,2456.6,2456.4,2.84967]
[1725259501488,9.17371059,2456.6,2456.2,5.69966]
[1725259502167,9.17371059,2456.6,2456.2,2.84982]
[1725259502402,9.17371059,2456.6,2456.2,5.69968]
[1725259502574,9.17371059,2456.6,2456.3,2.84979]
[1725259502772,9.17371059,2456.6,2456.2,5.69968]
[1725259502984,9.17371059,2456.6,2456.2,2.84982]
[1725259503184,9.17371059,2456.6,2456.2,5.69968]
[1725259503385,9.17371059,2456.6,2456.2,2.84982]
[1725259504106,9.17371059,2456.6,2456.2,5.69966]
[1725259504315,9.17371059,2456.6,2456.2,5.69968]
[1725259504528,9.17371059,2456.6,2456.2,2.84982]
[1725259505111,9.84597307,2456.8,2456.4,2.84961]
[1725259505316,11.10308366,2456.8,2456.4,2.84961]
[1725259505623,1.25711059,2456.6,2456.2,5.69969]
[1725259505908,1.25711059,2456.6,2456.3,2.8498]
[1725259507522,1.25711059,2456.6,2456.2,2.84982]
[1725259507679,7.9133,2456.5,2456.0,4912.85209108]
[1725259507879,7.9133,2456.5,2456.0,4902.19919108]
[1725259508400,7.9133,2456.5,2456.0,4905.04928108]
[1725259508974,7.9133,2456.5,2456.0,4902.19919108]
[1725259516579,7.5238,2456.3,2456.0,4899.34910108]
[1725259516834,7.6255897,2456.3,2456.0,4899.34910108]
[1725259517125,1.25711059,2456.2,2456.0,4899.34910108]
[1725259517723,10.37373,2456.3,2456.0,4899.34910108]
[1725259518282,7.5238,2456.3,2456.0,4899.34910108]
[1725259518490,4.10681059,2456.4,2456.0,4899.34910108]
[1725259518690,4.20859818,2456.4,2456.0,4899.34910108]
[1725259518987,9.69017307,2456.5,2456.0,4902.19926108]
[1725259519194,7.9883,2456.5,2456.0,4902.19926108]
[1725259523498,7.9883,2456.5,2456.1,2.85001]
[1725259524511,7.88438888,2456.5,2456.0,4902.19919108]
[1725259524815,1.34170965,2456.4,2456.0,4899.34910108]
[1725259526006,4.19141965,2456.4,2456.0,4899.34910108]
[1725259527650,7.5851,2456.3,2456.0,4899.34910108]
[1725259528351,1.25711059,2456.4,2456.0,4899.34910108]
[1725259528508,1.358896,2456.4,2456.0,4899.34910108]
[1725259529408,1.25711059,2456.4,2456.0,4899.34910108]
[1725259529847,1.3588956,2456.4,2456.0,4899.34910108]
[1725259530551,1.11985077,2456.4,2456.0,4899.34910108]
[1725259532427,1.01806576,2456.4,2456.0,4902.19924108]
[1725259533022,7.8502,2456.5,2456.0,4902.19924108]
[1725259533249,0.55,2456.4,2456.0,4902.19924108]
[1725259533551,4.10658059,2456.6,2456.0,4905.04933108]
[1725259533754,1.25711059,2456.6,2456.2,2.84992]
[1725259534328,1.35888639,2456.6,2456.2,5.69979]
[1725259534516,1.35888639,2456.6,2456.2,13.64649]
[1725259534715,1.35888639,2456.6,2456.0,4912.99595108]
[1725259534952,1.25711059,2456.4,2456.1,2.85003]
[1725259535820,1.25711059,2456.4,2456.0,4912.99593108]
[1725259536566,1.25711059,2456.4,2456.0,4910.14585108]
[1725259538918,9.54551059,2456.4,2456.0,4902.19915108]
[1725259539726,9.54551059,2456.4,2456.0,4899.34910108]
[1725259541222,12.39521059,2456.4,2456.0,4899.34910108]
[1725259542171,9.54551059,2456.4,2456.0,4899.34910108]
[1725259543775,12.39521059,2456.4,2456.0,4899.34910108]
[1725259543923,1.25711059,2456.2,2456.0,4899.34910108]
[1725259544123,4.20887093,2456.2,2456.0,4899.34910108]
[1725259544426,1.35890093,2456.2,2456.0,4899.34910108]
[1725259544736,1.25711059,2456.2,2456.0,4899.34910108]
[1725259546431,11.07154,2456.1,2456.0,4899.34910108]
[1725259547859,4.10705059,2456.2,2456.0,4899.34910108]
[1725259548067,4.20884341,2456.2,2456.0,4899.34910108]
[1725259548484,4.10705059,2456.2,2456.0,4899.34910108]
[1725259549893,10.97655,2456.5,2456.0,4899.34910108]
[1725259550088,1.9088959,2456.4,2456.0,4899.34910108]
[1725259552895,4.7586059,2456.4,2456.0,4899.34910108]
[1725259554972,1.9088959,2456.4,2456.0,4899.34910108]
[1725259555406,4.7586059,2456.4,2456.0,4899.34910108]